fUSD/lending_fUSD_20240906
["ID","MTS","AMOUNT","RATE_DAILY","PERIOD"]
[337409052,1725649833396,-812.9464343,0.00015,2]
[337409053,1725649833407,-920.06431593,0.00015,2]
[337409054,1725649833419,-704.92261432,0.00015,2]
[337409055,1725649833430,-2138.831207,0.00015,2]
[337409056,1725649833440,-653.18224521,0.00015,2]
[337409057,1725649833452,-3987.45282922,0.00015,2]
[337409058,1725649833463,-36699.45235541,0.00015,2]
[337409059,1725649833472,-273.0,0.00015,2]
[337409060,1725649833481,-5226.46535059,0.00015,2]
[337409061,1725649838218,-1989.47898931,0.00015,2]
[337409062,1725649838229,-1606.73102151,0.00015,2]
[337409063,1725649838279,-2218.18434799,0.00015,2]
[337409064,1725649838290,-366.7609917,0.00015,2]
[337409065,1725649838337,-3181.17244625,0.00015,2]
[337409227,1725649840323,-571.0,0.00015,2]
[337409230,1725649840333,-428.00017312,0.00015,2]
[337409232,1725649840345,-1215.76004287,0.00015,2]
[337409236,1725649840378,-3010.53519264,0.00015,2]
[337409252,1725649840530,-2775.94000765,0.00015,2]
[337409254,1725649840543,-1669.33501762,0.00015,2]
[337409256,1725649840554,-1081.03776,0.00015,2]
[337409596,1725649844042,-8366.326156,0.00015,2]
[337409598,1725649844054,-2601.6101732,0.00015,2]
[337409600,1725649844067,-538.67,0.00015,2]
[337409818,1725649846410,-416.0689448,0.00015,2]
[337409820,1725649846423,-98.9310552,0.00015,2]
[337409822,1725649846432,-423.08792752,0.00015,2]
[337409824,1725649846444,-12588.6223722,0.00015,2]
[337409827,1725649846456,-40810.84839218,0.00015,2]
[337409829,1725649846471,-343.53915486,0.00015,2]
[337409833,1725649846503,-555.25,0.00015,2]
[337410748,1725649860435,1000.0,0.00027,120]
[337410749,1725649869250,150.0,0.00031465,30]
[337410750,1725650062142,955.0,0.00031465,30]
[337410752,1725650222786,324.49,0.00010959,2]
[337410753,1725650237555,542.00859241,0.00031465,30]
[337410754,1725650264363,193.0,0.00031465,30]
[337410755,1725650544389,160.0,0.00031464,30]
[337410756,1725650620168,386.87,0.00011806,2]
[337410757,1725650662160,955.0,0.00031464,30]
[337410760,1725650761727,170.13,0.00010959,2]
[337410761,1725650844341,245.46891365,0.000101,2]
[337410762,1725650880546,3638.14867963,0.0001,2]
[337410770,1725651032370,-500.0,0.000123,2]
[337410771,1725651032381,-88.01158738,0.00012301,2]
[337410772,1725651032392,-452.48029853,0.00012301,2]
[337410773,1725651032401,-548.59879075,0.00012401,2]
[337410774,1725651032412,-4451.40120925,0.00012401,2]
[337410775,1725651032422,-11132.42587975,0.0001251,2]
[337410776,1725651032431,-182.91452336,0.000129,2]
[337410777,1725651032440,-259.41272485,0.000129,2]
[337410778,1725651032449,-254.68728077,0.000129,2]
[337410779,1725651032458,-305.47677564,0.000129,2]
[337410780,1725651032467,-504.81878064,0.00012973,2]
[337410781,1725651032476,-150.82,0.0001299,2]
[337410782,1725651032485,-500.0,0.00012999,2]
[337410783,1725651032496,-500.0,0.00012999,2]
[337410784,1725651032505,-394.14563585,0.00012999,2]
[337410785,1725651032514,-150.0,0.00012999,2]
[337410786,1725651032523,-188491.18417844,0.00013,2]
[337410787,1725651032535,-839.21568449,0.00013,2]
[337410788,1725651032550,-599.63924013,0.00013,2]
[337410789,1725651032569,-329.14260328,0.00013,2]
[337410790,1725651032580,-300.0,0.00013,2]
[337410840,1725651040331,-473.49053888,0.00013,2]
[337410841,1725651040493,-3408.16965506,0.00013,2]
[337410842,1725651040505,-1345.2272652,0.00013,2]
[337410843,1725651040618,-347.05096445,0.00013,2]
[337410844,1725651040629,-485.73645291,0.00013,2]
[337410845,1725651040640,-720.73329,0.00013,2]
[337410846,1725651040651,-671.14,0.00013,2]
[337410847,1725651040662,-376.56499992,0.00013,2]
[337410848,1725651040674,-414.4410234,0.00013,2]
[337410849,1725651040685,-543.43566378,0.00013,2]
[337410850,1725651040697,-112708.90328738,0.00013,2]
[337410851,1725651040738,-1922.61,0.00013,2]
[337410852,1725651040750,-1080.99768,0.00013,2]
[337410853,1725651040762,-2242.35735466,0.00013,2]
[337410857,1725651043259,-5771.54815457,0.00013,2]
[337410859,1725651043384,-5433.37208502,0.00013,2]
[337410860,1725651043494,-1740.63,0.00013,2]
[337410861,1725651043521,-2641.06868047,0.00013,2]
[337410863,1725651046414,-1370.88057693,0.00013,2]
[337410864,1725651046426,-349.99877428,0.00013,2]
[337410865,1725651046437,-335.451,0.00013,2]
[337410866,1725651046457,-287.88767852,0.00013,2]
[337410867,1725651046498,-904.23596,0.00013,2]
[337410868,1725651046509,-5923.552,0.00013,2]
[337410869,1725651046542,-49150.96274423,0.00013,2]
[337410870,1725651046556,-859.59283247,0.00013,2]
[337410876,1725651166426,367.52,0.00011355,2]
[337410877,1725651262359,955.0,0.00031464,30]
[337410878,1725651376638,1000.0,0.00013333,15]
[337410879,1725651447771,160.0,0.00031464,30]
[337410883,1725651714472,349.14,0.00011268,2]
[337410886,1725651910226,955.0,0.00031461,30]
[337410888,1725652024375,150.0,0.00011688,2]
[337410890,1725652090505,181.79,9.947e-05,2]
[337410902,1725652231468,-1241.68,0.00012373,2]
[337410903,1725652231523,-1525.1233529,0.00012373,2]
[337410904,1725652231578,-301.3459914,0.00012373,2]
[337410905,1725652231636,-1005.3606557,0.00012373,2]
[337410906,1725652231646,-250.0,0.00012408,2]
[337410907,1725652231655,-1589.2283843,0.00012408,2]
[337410908,1725652231667,-3293.1016157,0.00012408,2]
[337410909,1725652231676,-2186.75,0.00012438,2]
[337410910,1725652231685,-162.56,0.00012511,2]
[337410911,1725652231694,-400.35521112,0.0001271,2]
[337410912,1725652231704,-414.346,0.0001274,2]
[337410913,1725652231713,-23900.0,0.00012835,2]
[337410914,1725652231722,-189.62,0.00012847,2]
[337410915,1725652231731,-1000.0,0.00012855,2]
[337410916,1725652231740,-150.0,0.00012877,2]
[337410917,1725652231749,-170.06026119,0.000129,2]
[337410918,1725652231758,-181.69,0.000129,2]
[337410919,1725652231767,-222.8513707,0.000129,2]
[337410920,1725652231776,-251.1526757,0.000129,2]
[337410921,1725652231795,-311.0,0.00012908,2]
[337410922,1725652231804,-150.0,0.00012999,2]
[337410923,1725652231813,-499.99,0.00012999,2]
[337410924,1725652231822,-53956.73825178,0.00013,2]
[337410925,1725652231841,-460.43123519,0.00013,2]
[337410927,1725652231861,-389.04468734,0.00013,2]
[337410937,1725652237465,-11597.8,0.00013,2]
[337410939,1725652237476,-53500.00000001,0.00013,2]
[337410941,1725652237518,-7013.36725697,0.00013,2]
[337410942,1725652237529,-2002.72387272,0.00013,2]
[337410943,1725652237573,-267.7675,0.00013,2]
[337410944,1725652237630,-2160.66084754,0.00013,2]
[337410945,1725652237643,-802.70205357,0.00013,2]
[337410946,1725652237737,-518.0,0.00013,2]
[337411099,1725652239481,-984.30726176,0.00013,2]
[337411121,1725652239694,-588.4207,0.00013,2]
[337411127,1725652239747,-684.58112356,0.00013,2]
[337411426,1725652242597,-9546.90555321,0.00013,2]
[337411428,1725652242608,-3000.0206322,0.00013,2]
[337411788,1725652246123,-535.01,0.00013,2]
[337411790,1725652246133,-84371.98290614,0.00013,2]
[337411792,1725652246144,-1846.08095573,0.00013,2]
[337411794,1725652246160,-267.5,0.00013,2]
[337412345,1725652344951,150.0,0.00031462,30]
[337412346,1725652424684,354.76,0.00010581,2]
[337412347,1725652457411,250.0,0.00011927,2]
[337412348,1725652461793,958.0,0.00031463,30]
[337412349,1725652468996,1500.0,0.00011924,2]
[337412350,1725652585286,181.79,9.442e-05,2]
[337412351,1725652621642,150.0,0.00011876,2]
[337412352,1725652750727,162.56,0.00011895,2]
[337412353,1725652751126,250.0,0.00011895,2]
[337412354,1725652789924,250.0,0.00011832,2]
[337412355,1725652811270,258.37,0.00012009,30]
[337412356,1725652835530,500.0,0.0001181,2]
[337412357,1725652845975,429.51,0.00011796,2]
[337412358,1725652873197,210.38,0.00011829,2]
[337412359,1725652893280,800.0,0.00011766,2]
[337412360,1725652904505,23900.0,0.00011749,2]
[337412361,1725652908234,337.02,9.806e-05,2]
[337412362,1725652973136,250.0,0.00011777,2]
[337412363,1725652984040,308.26,0.00010959,2]
[337412384,1725653091246,294.98,0.00011762,2]
[337412389,1725653122338,750.0,0.00011,2]
[337412402,1725653259100,250.0,0.00011798,2]
[337412405,1725653304027,-337.02,0.0001207,2]
[337412406,1725653304057,-302.62586708,0.00012091,2]
[337412407,1725653304375,72.57686549,0.0001209,2]
[337412409,1725653310962,250.0,0.00011901,2]
[337412411,1725653322773,245.45,0.00012111,30]
[337412413,1725653357429,-340.42313451,0.0001209,2]
[337412414,1725653357450,-500.0,0.000123,2]
[337412415,1725653357470,-796.60071755,0.00012319,2]
[337412416,1725653357490,-7257.73359244,0.00012419,2]
[337412417,1725653357510,-300.0,0.00012439,2]
[337412418,1725653357703,-154.55,0.0001244,2]
[337412419,1725653357725,-249.19468293,0.00012445,2]
[337412420,1725653357747,-154.55,0.00012447,2]
[337412421,1725653357769,-150.0,0.00012454,2]
[337412422,1725653357789,-817.3,0.00012455,2]
[337412423,1725653357810,-150.99,0.00012455,2]
[337412424,1725653357829,-10232.67,0.00012455,2]
[337412425,1725653357849,-499.99,0.00012455,2]
[337412426,1725653357870,-150.99,0.00012455,2]
[337412427,1725653357892,-503.0,0.00012455,2]
[337412428,1725653357914,-2380.42,0.00012455,2]
[337412429,1725653357934,-154.55,0.00012455,2]
[337412430,1725653357954,-154.55,0.00012463,2]
[337412431,1725653357974,-52.48787257,0.00012471,2]
[337412432,1725653379102,-6187.30628402,0.00012219,2]
[337412442,1725653431696,-521.62262187,0.00012218,2]
[337412443,1725653431706,-6367.05311598,0.00012219,2]
[337412444,1725653431717,-102.06212743,0.00012471,2]
[337412445,1725653431726,-154.55,0.00012479,2]
[337412446,1725653431735,-154.55,0.00012486,2]
[337412447,1725653431744,-300.0,0.00012493,2]
[337412448,1725653431753,-154.55,0.00012494,2]
[337412449,1725653431762,-5703.8361996,0.00012494,2]
[337412450,1725653431782,-517.85511205,0.00012494,2]
[337412451,1725653431793,-1066.56431726,0.00012494,2]
[337412452,1725653431857,-25306.36247594,0.00012494,2]
[337412453,1725653431866,-154.55,0.00012502,2]
[337412454,1725653431875,-200.0,0.00012595,2]
[337412455,1725653431884,-421.24760668,0.00012763,2]
[337412456,1725653431893,-900.0,0.000129,2]
[337412457,1725653431904,-209.96855529,0.000129,2]
[337412458,1725653431913,-482.22277834,0.000129,2]
[337412459,1725653431923,-168.64330012,0.000129,2]
[337412460,1725653431932,-289.401147,0.000129,2]
[337412461,1725653431942,-194.99494931,0.000129,2]
[337412462,1725653431952,-216.46767158,0.000129,2]
[337412463,1725653431961,-189.62,0.00012952,2]
[337412464,1725653431972,-150.83,0.0001299,2]
[337412465,1725653431982,-263.2636356,0.0001299,2]
[337412466,1725653431991,-263.2636356,0.0001299,2]
[337412467,1725653432000,-263.2636356,0.0001299,2]
[337412468,1725653432009,-500.0,0.00012999,2]
[337412469,1725653432018,-268.98612969,0.00012999,2]
[337412470,1725653432027,-500.0,0.00012999,2]
[337412471,1725653432036,-429.50007452,0.00012999,2]
[337412472,1725653432045,-187164.95450135,0.00013,2]
[337412473,1725653432056,-785.42033485,0.00013,2]
[337412474,1725653432067,-2130.44985288,0.00013,2]
[337412475,1725653432078,-827.13712285,0.00013,2]
[337412483,1725653437644,-1869.92772421,0.00013,2]
[337412484,1725653437750,-420.87155646,0.00013,2]
[337412485,1725653437761,-587.5728,0.00013,2]
[337412565,1725653439651,-900.71549999,0.00013,2]
[337412566,1725653439862,-1084.88812179,0.00013,2]
[337412567,1725653439874,-1886.474165,0.00013,2]
[337412568,1725653439885,-313.87500004,0.00013,2]
[337412569,1725653439918,-676.78766256,0.00013,2]
[337412570,1725653439973,-2016.437266,0.00013,2]
[337412571,1725653440080,-1078.72646674,0.00013,2]
[337412572,1725653440246,-3119.98255977,0.00013,2]
[337412573,1725653440256,-344.62556429,0.00013,2]
[337412574,1725653440267,-1043.21965598,0.00013,2]
[337412579,1725653442607,-5814.4056,0.00013,2]
[337412582,1725653442619,-33520.65266368,0.00013,2]
[337412608,1725653443693,-10676.59805364,0.00013,2]
[337412609,1725653443706,-5159.10664084,0.00013,2]
[337412620,1725653445922,-4183.78159209,0.00013,2]
[337412621,1725653445937,-223594.27853634,0.00013,2]
[337412622,1725653445951,-18941.82842664,0.00013,2]
[337412623,1725653445963,-599.38775637,0.00013,2]
[337412624,1725653445986,-5380.3,0.00013,2]
[337412625,1725653446097,-214952.52200658,0.00013,2]
[337412634,1725653446283,-71013.72963234,0.00013,2]
[337412657,1725653463671,434.67,0.00011397,2]
[337412658,1725653513237,10072.0819,0.0001199,2]
[337412659,1725653657767,243.73,0.00010959,2]
[337412660,1725653701340,500.0,0.00010959,2]
[337412661,1725653701666,500.0,0.00010959,2]
[337412662,1725653701988,500.0,0.00010959,2]
[337412663,1725653702337,675.0,0.00010959,2]
[337412664,1725653824627,233.17,0.00012323,30]
[337412665,1725653941286,250.0,0.00012001,2]
[337412666,1725653955054,561.09,0.00011948,2]
[337412667,1725654043949,469.33,0.00010043,2]
[337412668,1725654051337,7606.26,0.00011937,2]
[337412669,1725654053206,443.18,0.00011937,2]
[337412670,1725654056840,295.01,0.00011956,2]
[337412671,1725654075588,640.0,0.00011931,2]
[337412672,1725654102069,250.0,0.00011912,2]
[337412673,1725654116127,23900.0,0.00011935,2]
[337412674,1725654161432,195.01,0.00010959,2]
[337412675,1725654195523,900.96,0.0001195,2]
[337412676,1725654208551,500.0,0.00010871,2]
[337412677,1725654284822,737.33,0.00011983,2]
[337412678,1725654327279,221.51,0.00012222,30]
[337412679,1725654336989,24764.91424736,9.5e-05,2]
[337412680,1725654351951,13678.24382412,0.00010988,2]
[337412681,1725654355028,21746.78514704,6.94e-05,2]
[337412682,1725654410317,394.75,0.0001197,2]
[337412683,1725654426650,150.0,0.00011688,2]
[337412685,1725654438590,150.0,0.00011957,2]
[337412686,1725654449693,250.0,0.00011957,2]
[337412687,1725654470058,1501.56,0.0001198,2]
[337412688,1725654478617,12222.56735171,0.0001,2]
[337412689,1725654481608,7799.6575322,0.00010999,2]
[337412690,1725654492904,14939.35163093,0.000109,2]
[337412698,1725654523708,192.13,0.0001198,2]
[337412702,1725654537154,-163.72,0.0001201,2]
[337412703,1725654537182,-851.15,0.00012054,2]
[337412704,1725654537212,-1179.59672782,0.00012065,2]
[337412706,1725654585769,168.31,0.00012005,2]
[337412707,1725654610994,477.87,0.00010107,2]
[337412718,1725654631815,-250.33780553,0.00012017,2]
[337412719,1725654631871,-237.66219447,0.00012017,2]
[337412720,1725654631881,-465.86327218,0.00012065,2]
[337412721,1725654631890,-500.0,0.000123,2]
[337412722,1725654631899,-150.0,0.00012337,2]
[337412723,1725654631908,-477.87,0.00012371,2]
[337412724,1725654631917,-168.8,0.00012645,2]
[337412725,1725654631926,-438.75,0.00012655,2]
[337412726,1725654631935,-150.99,0.00012655,2]
[337412727,1725654631944,-421.24760668,0.00012718,2]
[337412728,1725654631954,-432.97,0.0001279,2]
[337412729,1725654631963,-432.97,0.0001279,2]
[337412730,1725654631972,-432.97,0.0001279,2]
[337412731,1725654631981,-407.8642,0.000128,2]
[337412732,1725654631990,-730.0594,0.000128,2]
[337412733,1725654631999,-740.0578,0.000128,2]
[337412734,1725654632008,-2122.6584,0.000128,2]
[337412735,1725654632018,-583.10652413,0.000128,2]
[337412736,1725654632027,-1170.74459255,0.000128,2]
[337412737,1725654632040,-2810.31557355,0.000128,2]
[337412738,1725654632055,-1032.01313129,0.000128,2]
[337412739,1725654632067,-8500.0,0.000128,2]
[337412740,1725654632078,-1280.01432601,0.000128,2]
[337412741,1725654632089,-499.60047608,0.000128,2]
[337412742,1725654632099,-395.91278179,0.000128,2]
[337412743,1725654632111,-1740.0,0.000128,2]
[337412751,1725654637835,-1202.39730484,0.000128,2]
[337412752,1725654637847,-598.75373411,0.000128,2]
[337412753,1725654637859,-270.9400001,0.000128,2]
[337412754,1725654637891,-6413.2235651,0.000128,2]
[337412755,1725654637902,-771.07115909,0.000128,2]
[337412756,1725654637914,-11419.84,0.000128,2]
[337412757,1725654637924,-652.16989619,0.000128,2]
[337412758,1725654638122,-420.0,0.000128,2]
[337412759,1725654638134,-2022.10224047,0.000128,2]
[337413173,1725654642671,-3321.51973653,0.000128,2]
[337413185,1725654642729,-4580.74187796,0.000128,2]
[337413188,1725654642740,-643.51130434,0.000128,2]
[337413191,1725654642749,-794.84,0.000128,2]
[337413194,1725654642761,-1000.0,0.000128,2]
[337413197,1725654642771,-361.415,0.0001287,2]
[337413200,1725654642781,-499.99,0.0001287,2]
[337413203,1725654642790,-280.09951876,0.0001287,2]
[337413206,1725654642800,-577.08048124,0.0001287,2]
[337413208,1725654642810,-432.97,0.0001288,2]
[337413211,1725654642820,-432.97,0.0001288,2]
[337413214,1725654642829,-432.97,0.0001288,2]
[337413218,1725654642839,-432.97,0.00012885,2]
[337413220,1725654642848,-469.41139408,0.0001289,2]
[337413223,1725654642859,-6589.54420987,0.0001289,2]
[337413225,1725654642869,-432.97,0.0001289,2]
[337413227,1725654642879,-432.97,0.0001289,2]
[337413228,1725654642888,-432.97,0.0001289,2]
[337413230,1725654642897,-432.97,0.0001289,2]
[337413232,1725654642907,-432.97,0.0001289,2]
[337413234,1725654642916,-432.97,0.0001289,2]
[337413236,1725654642925,-432.97,0.0001289,2]
[337413238,1725654642936,-432.97,0.0001289,2]
[337413240,1725654642946,-432.97,0.0001289,2]
[337413242,1725654642955,-432.97,0.0001289,2]
[337413244,1725654642964,-432.97,0.0001289,2]
[337413246,1725654642977,-432.97,0.0001289,2]
[337413248,1725654642986,-432.97,0.0001289,2]
[337413249,1725654642995,-432.97,0.0001289,2]
[337413252,1725654643005,-432.97,0.0001289,2]
[337413253,1725654643016,-432.97,0.0001289,2]
[337413255,1725654643026,-432.97,0.0001289,2]
[337413257,1725654643036,-432.97,0.0001289,2]
[337413259,1725654643047,-432.97,0.0001289,2]
[337413261,1725654643058,-432.97,0.0001289,2]
[337413263,1725654643068,-432.97,0.0001289,2]
[337413265,1725654643078,-432.97,0.0001289,2]
[337413267,1725654643088,-432.97,0.0001289,2]
[337413269,1725654643097,-432.97,0.0001289,2]
[337413271,1725654643107,-432.97,0.0001289,2]
[337413273,1725654643117,-432.97,0.0001289,2]
[337413275,1725654643126,-432.97,0.0001289,2]
[337413277,1725654643136,-432.97,0.0001289,2]
[337413279,1725654643145,-432.97,0.0001289,2]
[337413281,1725654643154,-432.97,0.0001289,2]
[337413283,1725654643163,-432.97,0.0001289,2]
[337413284,1725654643173,-432.97,0.0001289,2]
[337413286,1725654643183,-432.97,0.0001289,2]
[337413289,1725654643191,-1484.6869,0.0001289,2]
[337413292,1725654643200,-179.99,0.00012893,2]
[337413295,1725654643209,-1000.0,0.00012895,2]
[337413297,1725654643221,-2500.0,0.00012895,2]
[337413299,1725654643230,-500.0,0.00012896,2]
[337413301,1725654643240,-500.0,0.00012899,2]
[337413303,1725654643250,-205.58153379,0.00012899,2]
[337413304,1725654643259,-3302.76214601,0.000129,2]
[337413307,1725654643276,-311.24,0.000129,2]
[337413309,1725654643287,-4472.62384869,0.000129,2]
[337413311,1725654643298,-438.35578518,0.000129,2]
[337413313,1725654643309,-522.77982189,0.000129,2]
[337413321,1725654643371,-1860.45465626,0.000129,2]
[337413567,1725654645835,-78859.12041181,0.000129,2]
[337413580,1725654645949,-64678.05823016,0.000129,2]
[337413582,1725654645958,-385.77822264,0.000129,2]
[337413584,1725654645967,-168.64330012,0.000129,2]
[337413586,1725654645979,-170.62058069,0.000129,2]
[337413588,1725654645988,-167.43511714,0.000129,2]
[337413590,1725654645998,-161.22266981,0.00012986,2]
[337413592,1725654646007,-150.83,0.0001299,2]
[337413594,1725654646017,-38751.62525304,0.00012996,2]
[337413599,1725654646061,-1338.8375,0.00012996,2]
[337413612,1725654646175,-535.31,0.00012996,2]
[337414816,1725654882630,210.43,0.00012296,30]
[337414817,1725654924816,750.0,0.00011,2]
[337414818,1725654984788,783.027909,0.00011993,2]
[337414819,1725655047553,250.0,0.00012005,2]
[337414820,1725655064044,265.35,0.00011985,2]
[337414821,1725655072030,150.31,0.00011985,2]
[337414822,1725655072240,150.31,0.00012005,2]
[337414823,1725655078994,256.38,9.536e-05,2]
[337414824,1725655101473,828.65,0.00011881,2]
[337414825,1725655161029,153.82,0.00010959,2]
[337414826,1725655162751,609.6,0.00011825,2]
[337414827,1725655194968,638.77,9.907e-05,2]
[337414828,1725655240264,250.0,0.00011781,2]
[337414829,1725655317279,837.06,0.0001178,2]
[337414830,1725655352387,168.8,0.00011745,2]
[337414831,1725655358152,199.9,0.00011964,30]
[337414833,1725655366027,23900.0,0.00011776,2]
[337414834,1725655410954,163.72,0.00011824,2]
[337414835,1725655481685,150.0,0.00011846,2]
[337414836,1725655558197,170.92,9.452e-05,2]
[337414837,1725655558623,170.92,0.00011815,2]
[337414838,1725655630116,1500.0,0.00011853,2]
[337414840,1725655658638,250.0,0.00011867,2]
[337414841,1725655660330,33448.44,0.00011962,2]
[337414842,1725655717449,512.32,0.00011881,2]
[337414843,1725655731936,606.83,9.973e-05,2]
[337414844,1725655739111,-150.31,0.00012025,2]
[337414845,1725655739140,-353.0,0.00012043,2]
[337414846,1725655739170,-150.31,0.00012044,2]
[337414847,1725655739198,-150.0,0.00012082,2]
[337414848,1725655739226,-389.142,0.00012101,2]
[337414849,1725655739255,-81.13120614,0.00012237,2]
[337414850,1725655746064,265.36,0.00011929,2]
[337414853,1725655802859,150.0,0.00011929,2]
[337414854,1725655803463,150.0,0.00011929,2]
[337414855,1725655803932,150.0,0.00011929,2]
[337414856,1725655804130,150.0,0.00011929,2]
[337414857,1725655804328,150.0,0.00011929,2]
[337414858,1725655804526,150.0,0.00011929,2]
[337414859,1725655804717,150.0,0.00011929,2]
[337414860,1725655804966,150.0,0.00011929,2]
[337414861,1725655804992,250.0,0.00011922,2]
[337414862,1725655806180,150.0,0.00011929,2]
[337414863,1725655806399,150.0,0.00011929,2]
[337414864,1725655806602,150.0,0.00011929,2]
[337414865,1725655806806,150.0,0.00011929,2]
[337414866,1725655807006,150.0,0.00011929,2]
[337414867,1725655807218,150.0,0.00011929,2]
[337414868,1725655807443,150.0,0.00011929,2]
[337414869,1725655807640,150.0,0.00011929,2]
[337414870,1725655808010,418.53,0.0001191,2]
[337414871,1725655808078,150.0,0.00011929,2]
[337414872,1725655808327,154.67203195,0.00011929,2]
[337414887,1725655831938,-525.69879386,0.00012237,2]
[337414888,1725655831947,-741.09474359,0.00012293,2]
[337414889,1725655831956,-165.36,0.00012691,2]
[337414890,1725655831965,-421.24760668,0.00012717,2]
[337414891,1725655831975,-150.0,0.00012747,2]
[337414892,1725655831984,-740.35643987,0.00012748,2]
[337414893,1725655831995,-150.0,0.00012767,2]
[337414894,1725655832004,-150.0,0.00012771,2]
[337414895,1725655832013,-150.0,0.00012781,2]
[337414896,1725655832022,-150.0,0.00012782,2]
[337414897,1725655832031,-499.99,0.00012782,2]
[337414898,1725655832041,-300.0,0.00012795,2]
[337414899,1725655832050,-300.0,0.00012795,2]
[337414900,1725655832059,-1000.0,0.00012796,2]
[337414901,1725655832069,-7048.5904,0.00012796,2]
[337414902,1725655832078,-268.0911,0.00012796,2]
[337414903,1725655832087,-3413.4275,0.00012796,2]
[337414904,1725655832096,-941.7596,0.00012796,2]
[337414905,1725655832105,-4015.5214,0.00012796,2]
[337414906,1725655832114,-176.5843,0.00012796,2]
[337414907,1725655832123,-8988.697,0.00012796,2]
[337414908,1725655832132,-1000.0,0.00012796,2]
[337414909,1725655832141,-1223.78901546,0.00012796,2]
[337414910,1725655832157,-1200.57738454,0.00012796,2]
[337414912,1725655832166,-352.6593,0.00012796,2]
[337414913,1725655832176,-2748.11279476,0.00012796,2]
[337414914,1725655832184,-846.2896007,0.00012796,2]
[337414915,1725655832193,-150.0,0.00012809,2]
[337414916,1725655832202,-28.18142,0.00012843,2]
[337414917,1725655832217,-122.3254622,0.00012843,2]
[337414919,1725655832226,-150.0,0.00012854,2]
[337414921,1725655832234,-444.8618175,0.0001287,2]
[337414923,1725655832245,-282.1381825,0.0001287,2]
[337414925,1725655832253,-402.91606485,0.00012871,2]
[337414927,1725655832264,-270.7366813,0.00012871,2]
[337414941,1725655837992,-534.42389,0.00012871,2]
[337414942,1725655838047,-291.92336385,0.00012871,2]
[337414943,1725655838057,-1283.715,0.00012871,2]
[337414944,1725655838066,-150.0,0.00012874,2]
[337414945,1725655838075,-331.85122983,0.00012895,2]
[337414946,1725655838084,-3296.52088631,0.00012896,2]
[337414947,1725655838095,-304.94405594,0.00012896,2]
[337414948,1725655838106,-782.53154917,0.00012896,2]
[337414949,1725655838117,-22102.0,0.00012896,2]
[337414950,1725655838128,-3343.64788778,0.00012896,2]
[337414951,1725655838139,-1073.39559906,0.00012896,2]
[337414952,1725655838153,-1553.42121379,0.00012896,2]
[337415288,1725655841970,-548.275,0.00012896,2]
[337415291,1725655841982,-308.94361421,0.00012896,2]
[337415296,1725655842026,-2384.46182192,0.00012896,2]
[337415314,1725655842190,-64301.85837182,0.00012896,2]
[337415316,1725655842206,-245000.0,0.00012896,2]
[337415318,1725655842215,-744.0477,0.00012896,2]
[337415320,1725655842224,-3515.1513,0.00012896,2]
[337415322,1725655842233,-1289.8741,0.000129,2]
[337415324,1725655842243,-172.00474581,0.000129,2]